[Event "37th ECCC 2022"]
[Site "Mayrhofen"]
[Date "2022.10.04"]
[Round "2.60"]
[White "Bjugn, Gisle"]
[Black "Bjorgvinsson, Andri Freyr"]
[Result "0-1"]
[ECO "A45"]
[WhiteElo "1866"]
[BlackElo "2119"]
[Annotator "TA"]
[PlyCount "80"]
[EventDate "2022.10.03"]
[EventType "team-tourn"]
[EventCountry "AUT"]
[SourceTitle "playchess.com"]
[Source "ChessBase"]
[SourceQuality "1"]
[TimeControl "40/5400+30:1800+30"]

{[%evp 9,80,-2,9,-2,31,20,30,31,32,32,31,35,46,53,41,48,46,-36,-19,-110,-109,-118,-110,-120,-96,-141,-118,-112,-120,-132,-78,-70,-52,-50,-46,-80,-22,0,33,0,0,0,0,-22,-14,-70,-61,-93,-34,-97,-91,-145,-122,-429,-452,-405,-398,-474,-486,-466,-463,-525,-475,-709,-784,-29970,-29970,-29975,-1365,-1338,-1325,-5223,-3180]} 1. d4 {[%emt 0:01:45]} Nf6 {[%emt 0:00:16]} 2. Bf4 {[%emt 0:00:05]} d5 {[%emt 0:00:49]} 3. e3 {[%emt 0:00:11]} c5 {[%emt 0:00:42]} 4. c3 {[%emt 0:00:18]} Qb6 {[%emt 0:01:02]} 5. Qb3 {[%emt 0:00:14]} c4 {[%emt 0:01:29]} 6. Qc2 {[%emt 0:03:54] D00: 1 d4 d5: Unusual lines.} Nc6 {[%emt 0:00:46][%cal Oc8f5]} 7. b3 {[%emt 0:00:16]} cxb3 {[%emt 0:23:17]} 8. axb3 {[%emt 0:00:25] White has an edge.} Nh5 {[%emt 0:01:42] [#]} 9. Bg5 $146 {[%emt 0:04:41][%cal Bf4g5,Bg5h4,Bh4g3][%mdl 32]} ({Predecessor:} 9. Ne2 e6 10. Nd2 Bd7 11. Bg5 h6 12. Bh4 g5 13. Bg3 Rc8 14. h4 Bg7 15. Bh2 g4 16. Qb2 O-O 17. Qa3 a5 18. e4 {1-0 (18) Panarello,G (2040)-Sossai,S (2063) ICCF email 2016}) 9... h6 {[%emt 0:00:13]} 10. Bh4 {[%emt 0:00:08]} g5 {[%emt 0:00:28]} 11. Be2 {[%emt 0:00:19]} Nf6 {[%emt 0:07:07]} 12. Bg3 {[%emt 0:00:23]} Ne4 {[%emt 0:06:25]} 13. Nf3 {[%emt 0:01:51]} (13. Nd2 $14) 13... Bf5 $15 {[%emt 0:03:23]} 14. Qb2 {[%emt 0:00:45]} (14. Bd3 $1 $11 {keeps the balance.}) 14... h5 $1 $17 {[%emt 0:02:33] And now ...h4 would win. Black is more active.} 15. h3 {[%emt 0:12:44]} Nxg3 {[%emt 0:00:05]} 16. fxg3 {[%emt 0:00:02]} Qc7 {[%emt 0:02:26]} 17. Kf2 {[%emt 0:04:16]} e6 $1 {[%emt 0:01:18]} (17... h4 18. g4 Qg3+ 19. Kg1 $11) 18. Nbd2 {[%emt 0:03:35] [#]} Bd6 $1 {[%emt 0:00:08]} ({But not} 18... h4 $6 19. g4 Bh7 20. Rhc1 $11) 19. Nf1 {[%emt 0:00:22]} Rg8 {[%emt 0:13:19]} ({Black should play} 19... f6 20. c4 Bb4) 20. c4 {[%emt 0:17:54]} h4 {[%emt 0:12:12][%cal Rh4g3]} 21. g4 {[%emt 0:02:45]} Be4 {[%emt 0:00:21]} 22. N3d2 {[%emt 0:00:59]} Bg3+ {[%emt 0:00:22] A strong pair of Bishops.} (22... Bh7 $17) 23. Kg1 $11 {[%emt 0:00:10]} Bh7 {[%emt 0:02:11]} 24. Bf3 {[%emt 0:02:42]} (24. b4 $5 {[%cal Rc4d5]}) 24... Nb4 $36 {[%emt 0:01:49][%mdl 2048] Black has some pressure.} 25. Nxg3 {[%emt 0:03:26]} Qxg3 {[%emt 0:04:24]} ({Don't take} 25... Nd3 26. Qa3 hxg3 27. cxd5 $14) 26. Nf1 {[%emt 0:01:21]} Qc7 {[%emt 0:00:10]} 27. cxd5 {[%emt 0:09:13]} (27. g3 $11) 27... exd5 $15 {[%emt 0:00:12]} 28. Rc1 {[%emt 0:00:39]} Qe7 {[%emt 0:00:05]} ({Black should try} 28... Qd6 $17 {Strongly threatening ...Nd3.} 29. Qa3 Ke7) 29. Qd2 {[%emt 0:05:03] [#]} (29. Rc5 $1 $15) 29... b6 $1 $17 {[%emt 0:03:46]} 30. Qc3 {[%emt 0:02:54]} (30. Be2 $142) 30... Rg6 {[%emt 0:03:24] Hoping for ...Rc6.} 31. Be2 $2 {[%emt 0:05:50][%mdl 8192] This costs White the game.} (31. Qc7 $17 {is a better chance.}) 31... Na2 $1 $19 {[%emt 0:04:11][%csl LRc1,LRc3]} 32. Qc7 {[%emt 0:05:04]} ({Don't play} 32. Bb5+ Kf8 33. Qe1 Nxc1 34. Qxc1 Re6 $19) 32... Nxc1 {[%emt 0:00:17]} 33. Bb5+ {[%emt 0:00:02]} Kf8 {[%emt 0:00:09]} 34. Qxc1 {[%emt 0:00:05]} Re6 {[%emt 0:00:38]} 35. Kf2 {[%emt 0:02:28]} Qf6+ {[%emt 0:00:09]} 36. Ke2 {[%emt 0:00:15]} (36. Kg1 $142) 36... Qxd4 {[%emt 0:01:55]} 37. Bc6 {[%emt 0:04:34]} Qd3+ {[%emt 0:00:49]} 38. Ke1 {[%emt 0:01:16]} Rd8 {[%emt 0:01:14]} (38... Rc8 $142 39. Qd2 Rexc6 40. Qxd3 Bxd3 41. Kf2 Rc1 42. e4 dxe4 43. Ne3 Rxh1 44. Nd5 Rc2+ 45. Ke3 Rxg2 46. Kd4 Rxh3 47. b4 Rf3 48. Ke5 h3 49. Kd6 e3 50. Ne7 Rf6+ 51. Kc7 Kxe7 52. Kc8 h2 53. Kc7 h1=Q 54. Kb8 Ra2 55. b5 Kd6 56. Kc8 Qa8#) 39. Bb7 {[%emt 0:04:50]} d4 {[%emt 0:01:38][%cal Rd4e3]} 40. Bc8 {[%emt 0:00:07]} Qc3+ {[%emt 0:02:11] Weighted Error Value: White=0.74/Black=0.21 (precise)} 0-1

[Event "37th ECCC 2022"]
[Site "Mayrhofen"]
[Date "2022.10.04"]
[Round "2.61"]
[White "Pechac, Jergus"]
[Black "Pallardo Lozoya, Jose Vicente"]
[Result "1-0"]
[ECO "A20"]
[WhiteElo "2633"]
[BlackElo "2355"]
[Annotator "TA"]
[PlyCount "67"]
[EventDate "2022.10.03"]
[EventType "team-tourn"]
[EventCountry "AUT"]
[SourceTitle "playchess.com"]
[Source "ChessBase"]
[SourceQuality "1"]
[TimeControl "40/5400+30:1800+30"]

{[%evp 9,67,38,30,-8,-4,0,-27,-64,-10,-68,-8,-22,-10,-16,28,27,30,30,29,31,29,26,27,32,60,34,130,111,125,126,135,98,372,372,362,368,365,367,377,379,376,336,331,350,1568,1554,1437,640,623,614,601,363,345,0,589,555,700,632,1532,1328]} 1. c4 {[%emt 0:00:40]} e5 {[%emt 0:00:53][%cal Be7e5,Be5e4][%mdl 32]} 2. Nf3 {[%emt 0:01:42]} e4 {[%emt 0:03:44]} 3. Nd4 {[%emt 0:00:58]} c6 {[%emt 0:05:36]} 4. d3 {[%emt 0:01:09]} Nf6 {[%emt 0:05:45]} 5. Nc3 {[%emt 0:00:56]} Bb4 {[%emt 0:03:02]} 6. Qb3 {[%emt 0:02:25] A20: English Opening: 1...e5.} Na6 {[%emt 0:22:16] [#]} 7. a3 $146 {[%emt 0:04:05]} ({Predecessor:} 7. Bd2 exd3 8. exd3 O-O 9. O-O-O Bc5 10. Be3 Ng4 11. Ne4 Nxe3 12. fxe3 Bb6 13. Nc2 {0-1 (45) Melaugh,S (2161)-Delaney,K (2314) Dublin 2020}) 7... Ba5 {[%emt 0:05:19]} 8. Bg5 {[%emt 0:00:36] Black has an edge.} O-O {[%emt 0:08:15]} (8... exd3 $1 $15 9. exd3 O-O) 9. O-O-O {[%emt 0:01:22]} (9. e3 $11) 9... Nc5 {[%emt 0:02:57]} (9... exd3 $15 10. exd3 d5) 10. Qc2 $11 {[%emt 0:01:13][%cal Rc3e4]} exd3 {[%emt 0:01:33]} 11. exd3 {[%emt 0:00:18]} Ne6 {[%emt 0:02:45]} (11... Bxc3 $5 12. Qxc3 d6 $11) 12. Nxe6 {[%emt 0:00:40]} fxe6 {[%emt 0:00:09]} 13. Ne4 {[%emt 0:08:28]} d5 {[%emt 0:02:24]} 14. Nxf6+ {[%emt 0:00:11]} gxf6 {[%emt 0:00:05]} 15. Bh6 {[%emt 0:00:07]} Rf7 {[%emt 0:00:40]} 16. g4 {[%emt 0:00:12]} b5 {[%emt 0:06:46]} 17. Rg1 {[%emt 0:04:57] Black must now prevent g5.} Rb8 {[%emt 0:04:58] Black is now going downhill.} (17... e5 $14) 18. g5 $16 Kh8 19. g6 $36 {[%emt 0:05:23][%mdl 2048] White is on the roll.} hxg6 {[%emt 0:16:23]} 20. Rxg6 {aiming for Qe2.} Kh7 $2 {[%mdl 8192]} (20... e5 $16 {keeps fighting.}) 21. d4 $18 {[%emt 0:02:13] White threatens Rg7+ and mate.} f5 {[%emt 0:00:32]} 22. Bg5 {[%emt 0:00:16]} Kxg6 {[%emt 0:01:34]} 23. Bxd8 {[%emt 0:00:11] Dancing on a razor blade.} Bxd8 {[%emt 0:00:03]} 24. Qb3 {[%emt 0:02:56] Qg3+ is the strong threat.} Bc7 {[%emt 0:00:25] Against Qg3+} (24... Bg5+ $2 25. Kb1 Bf4 26. Qf3 $18) 25. cxd5 {[%emt 0:00:57]} cxd5 {[%emt 0:00:11]} 26. Bxb5 {[%emt 0:01:53]} Bxh2 {[%emt 0:03:44]} (26... Kf6 27. Qh3 Rxb5) 27. Qh3 {[%emt 0:02:28]} Rh7 {[%emt 0:00:06] [#]} 28. Rg1+ $3 {[%emt 0:00:17][%mdl 512]} Bxg1 {[%emt 0:00:55]} 29. Qg3+ {[%emt 0:00:05]} Kf6 {[%emt 0:00:18]} 30. Qe5+ {[%emt 0:00:18]} Kg5 {[%emt 0:00:49] [#]} 31. Qg3+ {[%emt 0:01:03]} ({Less strong is} 31. Qxb8 Bh2 32. Qa8 (32. Qxc8 Rc7+ 33. Qxc7 Bxc7 $11) 32... Kf6 $16) (31. f4+ $1 Kg4 32. Qxb8 Be3+ 33. Kb1) 31... Kf6 {[%emt 0:00:24]} 32. Qxb8 {[%emt 0:00:14] White is clearly winning.} Bh2 {[%emt 0:00:38]} 33. f4 {[%emt 0:00:06] And now Qe5+ would win.} Bb7 {[%emt 0:02:38]} 34. Qf8+ {[%emt 0:00:12] Weighted Error Value: White=0.51/Black=0.39} 1-0

[Event "37th ECCC 2022"]
[Site "Mayrhofen"]
[Date "2022.10.04"]
[Round "2.62"]
[White "Macias Pino, Diego"]
[Black "Banusz, Tamas"]
[Result "0-1"]
[ECO "B31"]
[WhiteElo "2385"]
[BlackElo "2622"]
[Annotator "TA"]
[PlyCount "74"]
[EventDate "2022.10.03"]
[EventType "team-tourn"]
[EventCountry "AUT"]
[SourceTitle "playchess.com"]
[Source "ChessBase"]
[SourceQuality "1"]
[TimeControl "40/5400+30:1800+30"]

{[%evp 17,74,0,0,0,10,6,15,19,4,12,35,27,37,18,18,18,64,69,63,18,25,0,0,0,0,0,-8,-47,12,-53,-39,-135,-119,-111,-85,-102,-68,-72,-68,-68,-67,-97,-86,-171,-154,-211,-210,-604,-601,-777,-737,-1920,-1825,-29990,-29991,-29991,-29992,-29995,-29996]} 1. e4 {[%emt 0:00:04]} c5 {[%emt 0:00:06]} 2. Nf3 {[%emt 0:00:04]} Nc6 {[%emt 0:00:04]} 3. Bb5 {[%emt 0:00:02]} g6 {[%emt 0:00:06]} 4. O-O {[%emt 0:00:08]} Bg7 {[%emt 0:00:09]} 5. c3 {[%emt 0:00:05]} Nf6 {[%emt 0:00:14]} 6. Re1 {[%emt 0:00:05]} O-O {[%emt 0:00:14]} 7. d4 {[%emt 0:00:02]} d5 {[%emt 0:00:21]} 8. e5 {[%emt 0:00:05]} Ne4 {[%emt 0:00:04]} 9. Bxc6 {[%emt 0:00:03]} bxc6 {[%emt 0:00:10]} 10. Be3 {[%emt 0:00:03] is more profitable than 10.Nbd2 at the moment. B31: Sicilian: 2...Nc6 3 Bb5 g6.} Rb8 {[%emt 0:00:09]} 11. Qc1 {[%emt 0:00:05]} cxd4 {[%emt 0:03:45]} 12. cxd4 {[%emt 0:01:08] The position is equal.} Bf5 {[%emt 0:03:19]} 13. Nbd2 {[%emt 0:01:13]} Qd7 {[%emt 0:01:38]} 14. Nxe4 {[%emt 0:01:36] [#]} dxe4 $146 {[%emt 0:01:54]} ({Predecessor:} 14... Bxe4 15. Nd2 f6 16. exf6 exf6 17. f3 Bf5 18. Nb3 Rfe8 19. Nc5 Qf7 20. Qc3 Bf8 {½-½ (30) Khegay,D (2530)-Schekachikhin,M (2424) Cheliabinsk 2022}) 15. Nd2 {[%emt 0:01:30][%cal Bf3d2,Bd2b3,Bb3c5][%mdl 32]} f6 {[%emt 0:00:48]} 16. Qc3 {[%emt 0:00:05]} g5 {[%emt 0:08:37]} (16... Rb5 $11) 17. Rac1 $14 {[%emt 0:07:13]} Rfc8 {[%emt 0:02:29]} 18. Qa3 {[%emt 0:05:55]} h6 {[%emt 0:04:18]} 19. exf6 {[%emt 0:06:51]} exf6 {[%emt 0:00:29]} 20. Nb3 {[%emt 0:00:30]} Bf8 {[%emt 0:02:03]} 21. Nc5 {[%emt 0:01:31]} Qf7 {[%emt 0:00:14]} 22. b3 {[%emt 0:02:48]} Bd6 {[%emt 0:06:34]} (22... Be6 $15) 23. h3 {[%emt 0:02:50]} (23. Qa6 $11) 23... Be6 $15 {[%emt 0:06:15]} 24. Qa4 {[%emt 0:01:53]} ({White should play} 24. Qa6 $15 Bd5 25. Bd2) 24... Bd5 $17 {[%emt 0:00:45]} 25. Bd2 {[%emt 0:00:25]} Re8 {[%emt 0:05:44]} 26. Na6 {[%emt 0:00:43]} Rbc8 {[%emt 0:01:06]} 27. Nb4 {[%emt 0:00:21]} Bxb4 {[%emt 0:00:20]} 28. Bxb4 {[%emt 0:00:03]} Rcd8 {[%emt 0:04:06] Inhibits Bd6.} 29. Rc5 {[%emt 0:03:02]} f5 {[%emt 0:01:35][%cal Bf6f5,Bf5f4][%mdl 32]} 30. Ra5 {[%emt 0:00:09]} (30. Qa6 $17 {keeps fighting.}) 30... Rd7 {[%emt 0:00:04]} 31. Bc5 {[%emt 0:00:05]} (31. Rc1 $17) 31... f4 $19 {[%emt 0:01:08]} 32. Bxa7 $2 {[%emt 0:04:48] [#]} (32. Rxa7 Rxa7 33. Qxa7) 32... e3 {[%emt 0:04:08][%cal Be4e3,Be3e2][%mdl 32]} 33. f3 {[%emt 0:02:40]} h5 {[%emt 0:00:38][%cal Og5g4] And now ...g4! would win.} 34. Rf1 {[%emt 0:06:57]} g4 {[%emt 0:00:42] aiming for ...e2.} 35. Kh2 {[%emt 0:00:27]} e2 {[%emt 0:00:20][%mdl 64] [#] Deflection. Black mates.} 36. Re1 {[%emt 0:00:07]} gxf3 {[%emt 0:00:16]} 37. gxf3 {[%emt 0:00:03]} Qg7 {[%emt 0:00:18] Weighted Error Value: White=0.82/Black=0.09 (flawless)} 0-1

[Event "37th ECCC 2022"]
[Site "Mayrhofen"]
[Date "2022.10.04"]
[Round "2.63"]
[White "Michalik, Peter"]
[Black "Llobell Cortell, Enrique"]
[Result "1-0"]
[ECO "E04"]
[WhiteElo "2558"]
[BlackElo "2380"]
[Annotator "TA"]
[PlyCount "81"]
[EventDate "2022.10.03"]
[EventType "team-tourn"]
[EventCountry "AUT"]
[SourceTitle "playchess.com"]
[Source "ChessBase"]
[SourceQuality "1"]
[TimeControl "40/5400+30:1800+30"]

{[%evp 10,81,32,29,56,55,24,27,24,15,15,15,12,14,12,12,12,13,13,12,12,13,16,12,91,90,97,93,134,123,134,124,126,124,149,148,144,135,142,144,147,141,147,139,139,140,157,138,151,143,218,155,152,149,214,215,204,213,251,251,251,251,247,247,377,377,377,377,377,370,359,352,319,286]} 1. d4 {[%emt 0:00:03]} Nf6 {[%emt 0:00:38]} 2. c4 {[%emt 0:00:07]} e6 {[%emt 0:02:10]} 3. Nf3 {[%emt 0:01:36]} d5 {[%emt 0:00:28]} 4. g3 {[%emt 0:00:21]} dxc4 {[%emt 0:03:29]} 5. Bg2 {[%emt 0:00:22]} b5 {[%emt 0:01:23]} 6. Ne5 {[%emt 0:03:52]} Bb4+ {[%emt 0:09:16] E04: Open Catalan: 5 Nf3.} 7. Bd2 {[%emt 0:04:05]} Bxd2+ {[%emt 0:00:09]} 8. Qxd2 {[%emt 0:00:13]} Nd5 {[%emt 0:02:23] White has an edge.} 9. a4 {[%emt 0:09:55]} c6 {[%emt 0:02:11]} 10. axb5 {[%emt 0:01:54]} cxb5 {[%emt 0:00:09]} 11. Nc3 {[%emt 0:00:04]} f6 {[%emt 0:03:18]} 12. Ng4 {[%emt 0:01:08] Threatening Ne3.} Bb7 {[%emt 0:04:49]} 13. Nxb5 {[%emt 0:02:50] With the idea e4.} Qd7 $1 {[%emt 0:01:44]} 14. e4 $1 {[%emt 0:03:52]} Qxb5 {[%emt 0:03:19]} 15. exd5 {[%emt 0:00:11]} Bxd5 {[%emt 0:06:34]} 16. Ra5 {[%emt 0:01:37][%cal Ba1a5,Ba5d5,Bd5d6][%mdl 32] [#]} Qd7 $146 {[%emt 0:11:13]} (16... Qb7 $1 $11 {keeps the balance.} 17. Bxd5 exd5) ({Predecessor:} 16... Qb7 17. Bxd5 exd5 18. Qe2+ Kf7 19. O-O Re8 20. Ne3 Nd7 21. Qh5+ Kg8 22. Qxd5+ Qxd5 23. Rxd5 {½-½ (31) Sos Andreu,E (2354)-Krysa,L (2516) Linares 2019}) 17. Bxd5 $16 {[%emt 0:02:05]} exd5 {[%emt 0:00:07]} 18. Qe2+ {[%emt 0:02:07]} Kf7 {[%emt 0:08:11] Threatens to win with ...Nc6.} 19. Ne3 {[%emt 0:01:40] White is much more active.} Re8 {[%emt 0:15:45]} 20. Qh5+ {[%emt 0:06:36]} (20. Rxd5 $6 Qxd5 21. Nxd5 Rxe2+ 22. Kxe2 Nc6 $11) 20... Kg8 {[%emt 0:01:13]} 21. Rxd5 {[%emt 0:00:09]} Qe6 {[%emt 0:21:52] [#]} 22. Rd6 $3 {[%emt 0:04:50][%mdl 512]} Qe4 {[%emt 0:00:07]} 23. O-O {[%emt 0:00:19] aiming for Re1.} Nc6 {[%emt 0:00:10]} 24. Qc5 $40 {[%emt 0:02:14][%mdl 128] White attacks with force.} ({Much worse is} 24. Nxc4 $6 Nxd4 25. Qd5+ Qxd5 26. Rxd5 Nf3+ 27. Kg2 Ne1+ 28. Kh3 Re2 $11) 24... Rac8 {[%emt 0:01:01][%cal Oc6e5]} 25. Qxc4+ {[%emt 0:01:09]} Kh8 {[%emt 0:00:01]} 26. Qd5 {[%emt 0:02:59] Against Ne5} Qxd5 {[%emt 0:00:54]} 27. Rxd5 {[%emt 0:00:07]} Nb4 {[%emt 0:00:42]} 28. Rd7 {[%emt 0:00:18]} Red8 {[%emt 0:00:11]} 29. Rxa7 {[%emt 0:00:26]} Rxd4 {[%emt 0:00:10] [#]} (29... Nc6 $16 30. Rb7 Nxd4) 30. Rxg7 $3 {[%emt 0:00:30][%mdl 512]} Kxg7 {[%emt 0:01:22]} 31. Nf5+ {[%emt 0:00:06]} Kg6 {[%emt 0:00:30]} (31... Kf7 $16 {keeps fighting.} 32. Nxd4 Rd8) 32. Nxd4 $18 {[%emt 0:00:10][%mdl 4096] Endgame KRN-KRN} Nd3 {[%emt 0:00:21]} 33. b3 {[%emt 0:01:07] Against Rc4} Rd8 {[%emt 0:00:37]} 34. Nc6 {[%emt 0:00:48]} Rd6 {[%emt 0:00:23]} 35. Rd1 {[%emt 0:00:26] Hoping for Nb4.} Rxc6 36. Rxd3 {[%emt 0:00:05] KR-KR} Rc1+ {[%emt 0:01:09]} (36... Rb6 $142 37. Rf3 Kg7) 37. Kg2 {[%emt 0:00:06]} Rb1 {[%emt 0:00:02]} 38. Kf3 {[%emt 0:00:46]} Rb2 {[%emt 0:00:01]} 39. Rc3 {[%emt 0:01:05]} Kf5 {[%emt 0:00:14]} 40. Rc5+ {[%emt 0:00:14]} Kg6 {[%emt 0:01:01]} 41. Rb5 {[%emt 0:30:05] Weighted Error Value: White=0.03 (flawless) /Black=0.18 (very precise)} 1-0

[Event "37th ECCC 2022"]
[Site "Mayrhofen"]
[Date "2022.10.04"]
[Round "2.64"]
[White "Vassallo Barroche, Mauricio"]
[Black "Prohaszka, Peter"]
[Result "1-0"]
[ECO "A06"]
[WhiteElo "2373"]
[BlackElo "2570"]
[Annotator "TA"]
[PlyCount "117"]
[EventDate "2022.10.03"]
[EventType "team-tourn"]
[EventCountry "AUT"]
[SourceTitle "playchess.com"]
[Source "ChessBase"]
[SourceQuality "1"]
[TimeControl "40/5400+30:1800+30"]

{[%evp 9,117,41,33,14,27,19,12,9,11,0,0,0,-1,-14,-16,-31,-38,-47,-29,-42,-29,-25,-19,-27,0,-10,-14,-7,0,-54,0,0,0,-16,-23,-15,0,0,0,-38,-24,-50,-35,-43,-37,-70,-71,-77,-73,-64,-31,-101,-58,-43,-35,-35,-43,-67,-66,-58,-61,-69,-56,-52,0,0,0,16,235,246,420,483,473,433,453,433,432,431,388,281,418,418,491,284,284,284,284,284,461,203,905,487,905,904,791,663,834,741,2153,2043,1859,1683,29971,29973,29966,29965,29996,29997,29997,153]} 1. Nf3 {[%emt 0:00:04]} d5 {[%emt 0:00:13]} 2. g3 {[%emt 0:00:22]} Nd7 {[%emt 0:03:55]} 3. d4 {[%emt 0:12:00]} Nb6 {[%emt 0:01:24]} 4. Bg2 {[%emt 0:02:05]} Nf6 {[%emt 0:00:23]} 5. O-O {[%emt 0:00:10]} Bf5 {[%emt 0:00:57]} 6. c3 {[%emt 0:01:43] D02: 1 d4 d5 2 Nf3 sidelines, including 2...Nf6 3 g3 and 2...Nf6 3 Bf4.} h6 {[%emt 0:01:23]} 7. Nbd2 {[%emt 0:01:57]} (7. Ne5 {with more complications.} e6 8. f3 Bd6 9. e4) 7... e6 {[%emt 0:00:06] [#]} 8. a4 $146 {[%emt 0:06:02] The position is equal.} ({Predecessor:} 8. Re1 Bh7 9. Ne5 c5 10. a4 a5 11. Qb3 cxd4 12. Qb5+ Nbd7 13. cxd4 Bb4 14. Nd3 Bxd3 15. Qxd3 {0-1 (40) Triapishko,A (2510)-Kobo,O (2460) Chess.com INT 2021}) 8... a5 {[%emt 0:00:09]} 9. Ne5 {[%emt 0:00:10]} Bd6 {[%emt 0:12:23]} 10. Nd3 {[%emt 0:05:11]} O-O {[%emt 0:02:32]} 11. Nf3 {[%emt 0:01:49]} Nbd7 {[%emt 0:08:50]} 12. Bf4 {[%emt 0:06:42]} Bxf4 {[%emt 0:08:59]} 13. gxf4 {[%emt 0:06:18]} Qe7 {[%emt 0:02:56]} 14. Nde5 {[%emt 0:04:56]} Be4 {[%emt 0:06:17]} 15. e3 {[%emt 0:09:24]} Ra6 {[%emt 0:07:25]} 16. Ne1 {[%emt 0:02:55]} Rb6 {[%emt 0:04:58]} 17. f3 {[%emt 0:00:33]} Bh7 {[%emt 0:00:26]} 18. Rf2 {[%emt 0:00:06]} c5 {[%emt 0:02:13]} 19. N1d3 {[%emt 0:09:40]} ({White should play} 19. Bf1 $11) 19... Rc8 {[%emt 0:05:06]} ({Better is} 19... c4 $15 20. Nxd7 Qxd7) 20. dxc5 {[%emt 0:02:15]} Nxc5 {[%emt 0:00:37]} 21. Nxc5 {[%emt 0:00:03]} Qxc5 {[%emt 0:01:43]} 22. Qd2 {[%emt 0:00:14]} Rd6 {[%emt 0:06:53]} 23. Bf1 {[%emt 0:00:22]} Nd7 {[%emt 0:02:13][%cal Bf6d7,Bd7b6,Bb6c4][%mdl 32]} 24. Bb5 {[%emt 0:03:09]} Nb6 {[%emt 0:04:43]} 25. Rd1 {[%emt 0:03:32]} (25. Qe2 {keeps more tension.} Nc4 26. Re1 Rdd8 27. Rg2) 25... f6 {[%emt 0:03:11]} 26. Nd3 {[%emt 0:04:01]} Qc7 {[%emt 0:00:06]} 27. Qe1 {[%emt 0:00:28]} Nc4 {[%emt 0:01:53]} 28. Re2 {[%emt 0:00:04]} Rdd8 {[%emt 0:01:59]} 29. Nf2 {[%emt 0:00:17]} Kh8 {[%emt 0:04:38]} 30. Kh1 {[%emt 0:03:11]} (30. Bxc4 $15 Qxc4 31. Rd4) 30... e5 {[%emt 0:04:01]} 31. Bxc4 {[%emt 0:03:52]} dxc4 {[%emt 0:01:11]} 32. fxe5 $1 {[%emt 0:01:55]} fxe5 {[%emt 0:00:20] And now ...Qf7 would win.} 33. Rxd8+ {[%emt 0:01:46]} Rxd8 {[%emt 0:00:00]} 34. Rd2 {[%emt 0:00:00]} Rf8 {[%emt 0:00:54]} 35. Qd1 {[%emt 0:00:00]} Bg6 {[%emt 0:00:55]} 36. Rd7 {[%emt 0:02:02]} Qc5 {[%emt 0:01:27]} (36... Qc6 $15 37. Rd6 Qxf3+ 38. Qxf3 Rxf3 39. Rxg6 Rxf2) 37. Ng4 $1 $11 {[%emt 0:01:21]} Bd3 {[%emt 0:00:50]} 38. e4 $1 {[%emt 0:00:28][%cal Be3e4,Be4d5][%mdl 32]} ({Wrong is} 38. Rxb7 $2 Qc6 39. Rf7 Rxf7 $19) 38... h5 $2 {[%emt 0:00:37] This costs Black the game.} (38... Kh7 $11) 39. Rd5 $18 {[%emt 0:00:29]} Qxd5 {[%emt 0:00:41]} (39... Qb6 {was necessary.} 40. Nxe5 Kg8 41. Nxd3 cxd3 42. Qxd3 (42. Rxh5 Rd8 $16) 42... Qxb2 43. Rxh5 Qa1+ 44. Kg2 Qxa4 45. Qd5+ Rf7 46. Qxa5 Qc2+ 47. Kg3 Qb1 48. Qd8+ Rf8 49. Qd5+ Rf7 50. Qd8+ (50. Rf5 Qg1+ 51. Kh3 Qf1+ 52. Kg3 Qg1+ 53. Kh4 Qf2+ 54. Kh5 Qxh2+ 55. Kg4 Qg1+ 56. Kh3 Qh1+ 57. Kg4 Qg1+ 58. Kh5 g6+ 59. Kh6 gxf5 $11) 50... Rf8) 40. exd5 {[%emt 0:00:02]} hxg4 {[%emt 0:00:02]} 41. fxg4 {[%emt 0:30:12][%mdl 4096] Endgame KQ-KRB} Kg8 {[%emt 0:19:32] [#] aiming for ...Rf1+.} (41... Rf1+ $2 {[#]} 42. Qxf1 $3 {[%mdl 512]} Bxf1 43. d6) 42. Qd2 {[%emt 0:00:00]} Rd8 {[%emt 0:01:42]} 43. Qg5 {[%emt 0:00:00]} Rxd5 {[%emt 0:01:11]} 44. h4 {[%emt 0:00:00]} Kf7 {[%emt 0:00:44]} (44... b5 $142 45. Qe7 Kh7) 45. Kg1 {[%emt 0:00:00]} b5 {[%emt 0:00:55]} 46. axb5 {[%emt 0:00:00]} (46. Qe3 $142) 46... Rxb5 {[%emt 0:00:07]} 47. Qd8 {[%emt 0:00:00] Threatens to win with Qd7+.} Rxb2 {[%emt 0:00:59]} 48. Qxa5 {[%emt 0:00:00]} Re2 $2 {[%emt 0:00:48]} (48... g6 49. Qxe5 Re2) 49. Qd5+ {[%emt 0:00:00]} (49. h5 $142) 49... Kf6 $2 {[%emt 0:03:29]} (49... Kg6 50. Qe6+ Kh7) 50. Qd6+ {[%emt 0:00:00]} Kf7 {[%emt 0:00:03]} 51. g5 {[%emt 0:00:00][%cal Bg4g5,Bg5g6][%mdl 32]} Re1+ {[%emt 0:03:07]} 52. Kf2 {[%emt 0:00:00]} Re2+ {[%emt 0:00:25]} 53. Kf3 {[%emt 0:00:00][%cal Og5g6] Strongly threatening g6+!} e4+ {[%emt 0:00:37]} 54. Kg3 {[%emt 0:00:00] Qd7+ would kill now.} Re3+ {[%emt 0:02:59]} 55. Kg4 {[%emt 0:00:00] White threatens Qd7+ and mate.} Rf3 {[%emt 0:01:19]} 56. g6+ {[%emt 0:00:00] White mates.} Ke8 {[%emt 0:00:09]} 57. Qe6+ {[%emt 0:00:00]} Kf8 {[%emt 0:00:13]} 58. Qd7 {[%emt 0:00:00][%cal Rd7d8]} Kg8 {[%emt 0:00:30]} 59. Qd8+ $2 {[%emt 0:00:00] Weighted Error Value: White=0.24 (precise) /Black=0.45} (59. Qd5+ {mates} Kh8 60. Qd8+ Rf8 61. Qxf8#) 1-0